[Event "Late-Titled-Tuesday-Blitz-August-29-2023"]
[Site "Chess.com"]
[Date "2023.08.29"]
[Round "3"]
[White "GMG"]
[Black "Msb2"]
[Result "1-0"]
[WhiteElo "2760"]
[BlackElo "3009"]
[TimeControl "180+1"]
[EndTime "14:30:02 PDT"]
[Termination "GMG won by checkmate"]

1. d4 {[%clk 0:02:57.8]} 1... d5 {[%clk 0:03:00.1]} 2. Nf3 {[%clk 0:02:58.2]}
2... e6 {[%clk 0:03:00.6]} 3. g3 {[%clk 0:02:57]} 3... Nf6 {[%clk 0:03:00.4]} 4.
Bg2 {[%clk 0:02:54]} 4... Bd6 {[%clk 0:03:00.8]} 5. b3 {[%clk 0:02:49.3]} 5...
O-O {[%clk 0:03:00.2]} 6. Bb2 {[%clk 0:02:49.6]} 6... a5 {[%clk 0:02:57.9]} 7.
c4 {[%clk 0:02:46.8]} 7... a4 {[%clk 0:02:57.3]} 8. c5 {[%clk 0:02:44.3]} 8...
Be7 {[%clk 0:02:57.5]} 9. b4 {[%clk 0:02:44.6]} 9... b6 {[%clk 0:02:53.8]} 10.
Ne5 {[%clk 0:02:36.7]} 10... bxc5 {[%clk 0:02:49.3]} 11. bxc5 {[%clk 0:02:35.6]}
11... Nfd7 {[%clk 0:02:49.5]} 12. Nd3 {[%clk 0:02:35.2]} 12... Nc6 {[%clk
0:02:48.7]} 13. O-O {[%clk 0:02:31.9]} 13... Ba6 {[%clk 0:02:46.8]} 14. f4
{[%clk 0:02:11.5]} 14... Bxd3 {[%clk 0:02:38.4]} 15. Qxd3 {[%clk 0:02:09.3]}
15... Bf6 {[%clk 0:02:39]} 16. Rc1 {[%clk 0:02:02.3]} 16... a3 {[%clk
0:02:29.2]} 17. Bc3 {[%clk 0:01:59.5]} 17... Qe7 {[%clk 0:01:31.1]} 18. Nd2
{[%clk 0:01:48.7]} 18... Rfb8 {[%clk 0:01:26.1]} 19. e3 {[%clk 0:01:44]} 19...
Rb2 {[%clk 0:01:19]} 20. Nb3 {[%clk 0:01:29.3]} 20... Qd8 {[%clk 0:01:07.5]} 21.
Rd1 {[%clk 0:01:11.4]} 21... Qb8 {[%clk 0:01:02.8]} 22. Bxb2 {[%clk 0:00:49]}
22... axb2 {[%clk 0:01:03.7]} 23. Rab1 {[%clk 0:00:49.6]} 23... Rxa2 {[%clk
0:01:03.8]} 24. Rd2 {[%clk 0:00:48.5]} 24... g6 {[%clk 0:00:52.8]} 25. Rdxb2
{[%clk 0:00:47.8]} 25... Rxb2 {[%clk 0:00:53.2]} 26. Rxb2 {[%clk 0:00:48.7]}
26... Nxc5 {[%clk 0:00:53.8]} 27. Qc2 {[%clk 0:00:45.2]} 27... Na4 {[%clk
0:00:49.6]} 28. Rb1 {[%clk 0:00:45]} 28... Nb4 {[%clk 0:00:45.6]} 29. Qd2 {[%clk
0:00:40.7]} 29... Nc6 {[%clk 0:00:38.5]} 30. Qc1 {[%clk 0:00:36.5]} 30... Qe8
{[%clk 0:00:34.7]} 31. Bf1 {[%clk 0:00:33]} 31... Ne7 {[%clk 0:00:30.8]} 32.
Qxc7 {[%clk 0:00:27.9]} 32... Kg7 {[%clk 0:00:30.3]} 33. Na5 {[%clk 0:00:26]}
33... Nf5 {[%clk 0:00:20.8]} 34. Kf2 {[%clk 0:00:23.6]} 34... Bd8 {[%clk
0:00:18.6]} 35. Qc6 {[%clk 0:00:14.4]} 35... Qxc6 {[%clk 0:00:18.8]} 36. Nxc6
{[%clk 0:00:15.3]} 36... Nc3 {[%clk 0:00:19.7]} 37. Rb8 {[%clk 0:00:14.5]} 37...
Ne4+ {[%clk 0:00:19.9]} 38. Kf3 {[%clk 0:00:14.3]} 38... Bc7 {[%clk 0:00:18.8]}
39. Rb7 {[%clk 0:00:14.1]} 39... Bd6 {[%clk 0:00:19.4]} 40. Bd3 {[%clk
0:00:13.2]} 40... Nf6 {[%clk 0:00:12.2]} 41. Ne5 {[%clk 0:00:11.5]} 41... Bxe5
{[%clk 0:00:11.4]} 42. fxe5 {[%clk 0:00:10.8]} 42... Ng8 {[%clk 0:00:11.5]} 43.
Bxf5 {[%clk 0:00:10.4]} 43... gxf5 {[%clk 0:00:12.4]} 44. g4 {[%clk 0:00:10.7]}
44... fxg4+ {[%clk 0:00:12.4]} 45. Kxg4 {[%clk 0:00:11.6]} 45... Nh6+ {[%clk
0:00:13.3]} 46. Kf4 {[%clk 0:00:11.7]} 46... Nf5 {[%clk 0:00:13.9]} 47. Rb4
{[%clk 0:00:11.2]} 47... Ne7 {[%clk 0:00:07.4]} 48. Rb7 {[%clk 0:00:09.6]} 48...
Nf5 {[%clk 0:00:07.4]} 49. h3 {[%clk 0:00:10.1]} 49... Kg6 {[%clk 0:00:07.5]}
50. Rb8 {[%clk 0:00:10.4]} 50... Kg7 {[%clk 0:00:07.9]} 51. Re8 {[%clk
0:00:10.7]} 51... h6 {[%clk 0:00:07.9]} 52. Rb8 {[%clk 0:00:10.3]} 52... Kh7
{[%clk 0:00:07.5]} 53. Rb1 {[%clk 0:00:10.7]} 53... Kg7 {[%clk 0:00:07.7]} 54.
Rg1+ {[%clk 0:00:11.3]} 54... Kh7 {[%clk 0:00:08.2]} 55. Rg4 {[%clk 0:00:10.9]}
55... Kh8 {[%clk 0:00:08.3]} 56. h4 {[%clk 0:00:10.1]} 56... Kh7 {[%clk
0:00:05.6]} 57. h5 {[%clk 0:00:10.5]} 57... Ng7 {[%clk 0:00:06.2]} 58. Rh4
{[%clk 0:00:10.5]} 58... Nf5 {[%clk 0:00:06.9]} 59. Rh3 {[%clk 0:00:10.8]} 59...
Kg7 {[%clk 0:00:07.8]} 60. Rh2 {[%clk 0:00:10.6]} 60... Kh7 {[%clk 0:00:08.3]}
61. Rg2 {[%clk 0:00:10.1]} 61... Ng7 {[%clk 0:00:08.8]} 62. Kg4 {[%clk
0:00:10.2]} 62... Nf5 {[%clk 0:00:09.2]} 63. Re2 {[%clk 0:00:10.8]} 63... Kg7
{[%clk 0:00:09.4]} 64. Re1 {[%clk 0:00:10.5]} 64... Kh7 {[%clk 0:00:09.8]} 65.
Kf4 {[%clk 0:00:10.6]} 65... Ng7 {[%clk 0:00:09.8]} 66. Rh1 {[%clk 0:00:10.5]}
66... Nf5 {[%clk 0:00:09.7]} 67. Kf3 {[%clk 0:00:10.1]} 67... Kg7 {[%clk
0:00:09.6]} 68. Rg1+ {[%clk 0:00:09.5]} 68... Kh7 {[%clk 0:00:10]} 69. Ke2
{[%clk 0:00:09.6]} 69... Ng7 {[%clk 0:00:09.9]} 70. Rh1 {[%clk 0:00:09.8]} 70...
Nf5 {[%clk 0:00:10.5]} 71. Kd3 {[%clk 0:00:10.2]} 71... Ng3 {[%clk 0:00:11]} 72.
Rh3 {[%clk 0:00:09.2]} 72... Ne4 {[%clk 0:00:10.5]} 73. Rf3 {[%clk 0:00:08.9]}
73... Kg7 {[%clk 0:00:10.5]} 74. Kc2 {[%clk 0:00:07.8]} 74... f6 {[%clk
0:00:09.5]} 75. Kd3 {[%clk 0:00:05.4]} 75... fxe5 {[%clk 0:00:06.1]} 76. dxe5
{[%clk 0:00:06.3]} 76... Ng5 {[%clk 0:00:07]} 77. Rf1 {[%clk 0:00:06.1]} 77...
Nf7 {[%clk 0:00:07.1]} 78. Kd4 {[%clk 0:00:05.4]} 78... Ng5 {[%clk 0:00:07.2]}
79. Rf6 {[%clk 0:00:05.3]} 79... Kh7 {[%clk 0:00:07.6]} 80. Rg6 {[%clk
0:00:03.9]} 80... Nf3+ {[%clk 0:00:07.2]} 81. Kc5 {[%clk 0:00:03.8]} 81... Ng5
{[%clk 0:00:04]} 82. Kd6 {[%clk 0:00:03.3]} 82... Ne4+ {[%clk 0:00:02]} 83. Kxe6
{[%clk 0:00:03.4]} 83... Nc5+ {[%clk 0:00:02.9]} 84. Kxd5 {[%clk 0:00:03.3]}
84... Nd7 {[%clk 0:00:03.8]} 85. Rd6 {[%clk 0:00:03]} 85... Nf8 {[%clk 0:00:04]}
86. e6 {[%clk 0:00:03.5]} 86... Kg8 {[%clk 0:00:04.7]} 87. e7 {[%clk 0:00:03.9]}
87... Kh7 {[%clk 0:00:02.5]} 88. exf8=R {[%clk 0:00:03.5]} 88... Kg7 {[%clk
0:00:02.6]} 89. Ra8 {[%clk 0:00:04.1]} 89... Kf7 {[%clk 0:00:02.7]} 90. Ra7+
{[%clk 0:00:04.7]} 90... Ke8 {[%clk 0:00:03.6]} 91. Rb6 {[%clk 0:00:05.1]} 91...
Kd8 {[%clk 0:00:04]} 92. Rb8# {[%clk 0:00:06]} 1-0

[Event "Late-Titled-Tuesday-Blitz-August-29-2023"]
[Site "Chess.com"]
[Date "2023.08.29"]
[Round "3"]
[White "Sanan_Sjugirov"]
[Black "NigelDwarf"]
[Result "1-0"]
[WhiteElo "2856"]
[BlackElo "2533"]
[TimeControl "180+1"]
[EndTime "14:30:21 PDT"]
[Termination "Sanan_Sjugirov won by resignation"]

1. d4 {[%clk 0:03:00.9]} 1... Nf6 {[%clk 0:02:58.8]} 2. Nf3 {[%clk 0:03:01]}
2... c5 {[%clk 0:02:58]} 3. d5 {[%clk 0:03:00.8]} 3... b5 {[%clk 0:02:57.2]} 4.
Bg5 {[%clk 0:02:58]} 4... g6 {[%clk 0:02:57]} 5. d6 {[%clk 0:02:41.6]} 5... Bb7
{[%clk 0:02:52.2]} 6. e3 {[%clk 0:02:31.5]} 6... Bg7 {[%clk 0:02:35.3]} 7. dxe7
{[%clk 0:02:27.6]} 7... Qxe7 {[%clk 0:02:15]} 8. Bxb5 {[%clk 0:02:25.4]} 8...
O-O {[%clk 0:02:14.8]} 9. O-O {[%clk 0:02:23.8]} 9... d5 {[%clk 0:02:14.3]} 10.
Be2 {[%clk 0:02:14.5]} 10... Nc6 {[%clk 0:02:11.8]} 11. Nbd2 {[%clk 0:02:11.6]}
11... h6 {[%clk 0:02:05.6]} 12. Bh4 {[%clk 0:02:11.2]} 12... Rfd8 {[%clk
0:02:01.8]} 13. c3 {[%clk 0:02:10.6]} 13... g5 {[%clk 0:01:55.1]} 14. Bg3 {[%clk
0:02:10.2]} 14... Ne4 {[%clk 0:01:55.7]} 15. Nxe4 {[%clk 0:01:02.6]} 15... dxe4
{[%clk 0:01:56.6]} 16. Nd2 {[%clk 0:01:03]} 16... Ne5 {[%clk 0:01:48.8]} 17.
Bxe5 {[%clk 0:00:54.5]} 17... Bxe5 {[%clk 0:01:45.4]} 18. g3 {[%clk 0:00:52.3]}
18... f5 {[%clk 0:01:18]} 19. Qb3+ {[%clk 0:00:47.2]} 19... Kh8 {[%clk 0:01:17]}
20. Nc4 {[%clk 0:00:46.4]} 20... Bf6 {[%clk 0:00:28.3]} 21. Rad1 {[%clk
0:00:45.7]} 21... f4 {[%clk 0:00:23.9]} 22. Bg4 {[%clk 0:00:44.5]} 22... Bd5
{[%clk 0:00:21.4]} 23. Qa4 {[%clk 0:00:38]} 23... Qf7 {[%clk 0:00:20.6]} 24.
Rxd5 {[%clk 0:00:19.1]} 24... Qxd5 {[%clk 0:00:18.3]} 25. Qa6 {[%clk 0:00:18.4]}
25... Bg7 {[%clk 0:00:16.6]} 26. Qg6 {[%clk 0:00:13.2]} 26... Qxc4 {[%clk
0:00:12]} 27. Bf5 {[%clk 0:00:13.6]} 27... Qg8 {[%clk 0:00:10.7]} 28. Bxe4
{[%clk 0:00:10.8]} 28... Rf8 {[%clk 0:00:09]} 29. exf4 {[%clk 0:00:10]} 29...
Rf6 {[%clk 0:00:08]} 30. Qh5 {[%clk 0:00:09.5]} 30... Re8 {[%clk 0:00:07.5]} 31.
fxg5 {[%clk 0:00:09]} 31... Rd6 {[%clk 0:00:03.7]} 32. Bf5 {[%clk 0:00:05.7]}
32... Re5 {[%clk 0:00:03.7]} 33. g4 {[%clk 0:00:05.5]} 33... Bf8 {[%clk
0:00:03]} 34. g6 {[%clk 0:00:05.1]} 34... Qg7 {[%clk 0:00:03]} 35. Qh3 {[%clk
0:00:04.3]} 35... Rxg6 {[%clk 0:00:02.4]} 36. Bxg6 {[%clk 0:00:04.2]} 36... Qxg6
{[%clk 0:00:03.3]} 37. Qf3 {[%clk 0:00:04.3]} 37... Bg7 {[%clk 0:00:02.4]} 38.
h3 {[%clk 0:00:04.4]} 38... Rg5 {[%clk 0:00:02.7]} 39. Re1 {[%clk 0:00:03.9]}
39... h5 {[%clk 0:00:03]} 40. Re4 {[%clk 0:00:04.3]} 40... hxg4 {[%clk
0:00:03.1]} 41. hxg4 {[%clk 0:00:05.2]} 41... Re5 {[%clk 0:00:03.1]} 42. Rf4
{[%clk 0:00:04.4]} 42... Qb1+ {[%clk 0:00:02.3]} 43. Kg2 {[%clk 0:00:04.9]}
43... Qg6 {[%clk 0:00:02.2]} 44. Qh3+ {[%clk 0:00:03.8]} 44... Kg8 {[%clk
0:00:02]} 45. Qf3 {[%clk 0:00:04.5]} 45... Rg5 {[%clk 0:00:02.3]} 46. a4 {[%clk
0:00:04.2]} 46... Kh7 {[%clk 0:00:02.5]} 47. b4 {[%clk 0:00:03.9]} 47... Be5
{[%clk 0:00:02.6]} 48. Re4 {[%clk 0:00:04]} 48... cxb4 {[%clk 0:00:02]} 49. cxb4
{[%clk 0:00:04.9]} 49... Bg7 {[%clk 0:00:02.3]} 50. b5 {[%clk 0:00:04.7]} 50...
Qd6 {[%clk 0:00:01.8]} 51. Rf4 {[%clk 0:00:04.3]} 51... Rg6 {[%clk 0:00:02.3]}
52. Qe4 {[%clk 0:00:04.4]} 52... Be5 {[%clk 0:00:02.7]} 53. Rf7+ {[%clk
0:00:04.2]} 53... Kg8 {[%clk 0:00:03.3]} 54. Rf3 {[%clk 0:00:03.8]} 54... Qe6
{[%clk 0:00:03.6]} 55. Rf5 {[%clk 0:00:02.2]} 55... Kg7 {[%clk 0:00:03.3]} 56.
Qxe5+ {[%clk 0:00:02.3]} 56... Qxe5 {[%clk 0:00:03.7]} 57. Rxe5 {[%clk
0:00:03.2]} 57... Rxg4+ {[%clk 0:00:04.6]} 58. Kf3 {[%clk 0:00:03.9]} 58... Rxa4
{[%clk 0:00:05.5]} 59. Rc5 {[%clk 0:00:04.4]} 59... Kf6 {[%clk 0:00:05.8]} 60.
Ke3 {[%clk 0:00:04.8]} 60... Ke6 {[%clk 0:00:05.6]} 61. f4 {[%clk 0:00:05.2]}
61... Kd6 {[%clk 0:00:06]} 62. Rh5 {[%clk 0:00:05.6]} 62... Ke6 {[%clk 0:00:06]}
63. Kf3 {[%clk 0:00:05.6]} 63... Kf6 {[%clk 0:00:04.9]} 64. Kg4 {[%clk 0:00:06]}
64... Rb4 {[%clk 0:00:05.4]} 65. Rc5 {[%clk 0:00:05.1]} 65... Ra4 {[%clk
0:00:04.4]} 66. Rc6+ {[%clk 0:00:05.4]} 66... Kf7 {[%clk 0:00:04.8]} 67. Kg5
{[%clk 0:00:05.6]} 67... Rb4 {[%clk 0:00:04.8]} 68. Rc5 {[%clk 0:00:05.9]} 68...
Ra4 {[%clk 0:00:03.3]} 69. f5 {[%clk 0:00:05.9]} 69... Ra1 {[%clk 0:00:03.5]}
70. Rc7+ {[%clk 0:00:06.3]} 70... Ke8 {[%clk 0:00:03.2]} 71. Rb7 {[%clk
0:00:06.2]} 71... Rg1+ {[%clk 0:00:03.3]} 72. Kf6 {[%clk 0:00:06.4]} 72... Rb1
{[%clk 0:00:01.1]} 73. Kg6 {[%clk 0:00:05.9]} 73... Rg1+ {[%clk 0:00:01.4]} 74.
Kf6 {[%clk 0:00:06.3]} 74... Rb1 {[%clk 0:00:02.2]} 75. Ke6 {[%clk 0:00:03.4]}
75... Re1+ {[%clk 0:00:02.5]} 76. Kd6 {[%clk 0:00:04]} 76... Rd1+ {[%clk
0:00:03]} 77. Ke5 {[%clk 0:00:04.2]} 77... Re1+ {[%clk 0:00:03.3]} 78. Kd4
{[%clk 0:00:03.8]} 78... Rd1+ {[%clk 0:00:03.8]} 79. Ke4 {[%clk 0:00:04.2]}
79... Rb1 {[%clk 0:00:03.7]} 80. f6 {[%clk 0:00:03.3]} 80... Rb4+ {[%clk
0:00:03.8]} 81. Ke5 {[%clk 0:00:03.6]} 81... Rb1 {[%clk 0:00:04.3]} 82. Ke6
{[%clk 0:00:03.8]} 82... Re1+ {[%clk 0:00:04.5]} 83. Kd6 {[%clk 0:00:04.4]}
83... Rd1+ {[%clk 0:00:04.9]} 84. Kc6 {[%clk 0:00:04.3]} 84... Rc1+ {[%clk
0:00:05.4]} 85. Kd6 {[%clk 0:00:04.4]} 85... Rd1+ {[%clk 0:00:05.9]} 86. Kc7
{[%clk 0:00:05]} 86... Rc1+ {[%clk 0:00:05.3]} 87. Kb8 {[%clk 0:00:05.4]} 87...
Kd8 {[%clk 0:00:05]} 88. Kxa7 {[%clk 0:00:05.4]} 88... Ra1+ {[%clk 0:00:05]} 89.
Kb6 {[%clk 0:00:05.7]} 89... Rf1 {[%clk 0:00:05.9]} 90. f7 {[%clk 0:00:06]}
90... Rf6+ {[%clk 0:00:05.7]} 91. Ka7 {[%clk 0:00:06.2]} 91... Kc8 {[%clk
0:00:05.7]} 92. Rb8+ {[%clk 0:00:06.4]} 92... Kc7 {[%clk 0:00:05.1]} 93. Rb7+
{[%clk 0:00:06.7]} 93... Kd6 {[%clk 0:00:05]} 94. Rb6+ {[%clk 0:00:07.1]} 94...
Ke7 {[%clk 0:00:04.8]} 95. Rxf6 {[%clk 0:00:08]} 95... Kf8 {[%clk 0:00:05.3]}
96. b6 {[%clk 0:00:08]} 1-0

[Event "Late-Titled-Tuesday-Blitz-August-29-2023"]
[Site "Chess.com"]
[Date "2023.08.29"]
[Round "3"]
[White "Leo_C"]
[Black "diamonds13"]
[Result "1-0"]
[WhiteElo "2570"]
[BlackElo "2355"]
[TimeControl "180+1"]
[EndTime "14:30:40 PDT"]
[Termination "Leo_C won on time"]

1. d4 {[%clk 0:03:00.9]} 1... f5 {[%clk 0:02:56.9]} 2. g3 {[%clk 0:03:00.1]}
2... Nf6 {[%clk 0:02:55]} 3. Bg2 {[%clk 0:03:00]} 3... e6 {[%clk 0:02:55.4]} 4.
Nf3 {[%clk 0:02:57.2]} 4... d6 {[%clk 0:02:54.1]} 5. O-O {[%clk 0:02:56.3]} 5...
Nbd7 {[%clk 0:02:53.5]} 6. b3 {[%clk 0:02:52.5]} 6... g6 {[%clk 0:02:49.7]} 7.
Bb2 {[%clk 0:02:52.1]} 7... Bg7 {[%clk 0:02:49.9]} 8. Nbd2 {[%clk 0:02:43.3]}
8... d5 {[%clk 0:02:47.7]} 9. c4 {[%clk 0:02:39.7]} 9... c6 {[%clk 0:02:46.8]}
10. Qc2 {[%clk 0:02:35.9]} 10... O-O {[%clk 0:02:46.2]} 11. b4 {[%clk
0:02:35.3]} 11... Ne4 {[%clk 0:02:37.2]} 12. b5 {[%clk 0:02:32.1]} 12... Ndf6
{[%clk 0:02:32.8]} 13. Nxe4 {[%clk 0:02:13.7]} 13... fxe4 {[%clk 0:02:25.8]} 14.
Ne5 {[%clk 0:02:13.4]} 14... Bd7 {[%clk 0:02:26.1]} 15. bxc6 {[%clk 0:02:10.1]}
15... bxc6 {[%clk 0:02:26.1]} 16. Qa4 {[%clk 0:02:00.8]} 16... c5 {[%clk
0:02:19.4]} 17. Nxd7 {[%clk 0:01:59.4]} 17... Nxd7 {[%clk 0:02:15.1]} 18. Bh3
{[%clk 0:01:52.5]} 18... Nb6 {[%clk 0:02:05.7]} 19. Qc2 {[%clk 0:01:45.9]} 19...
Nxc4 {[%clk 0:02:01.3]} 20. Bxe6+ {[%clk 0:01:43.2]} 20... Kh8 {[%clk
0:02:01.3]} 21. e3 {[%clk 0:00:46]} 21... Nxb2 {[%clk 0:01:49.1]} 22. Qxb2
{[%clk 0:00:45]} 22... cxd4 {[%clk 0:01:49.3]} 23. exd4 {[%clk 0:00:44.7]} 23...
Rb8 {[%clk 0:01:47.1]} 24. Qa3 {[%clk 0:00:39.2]} 24... Bxd4 {[%clk 0:01:42.3]}
25. Rad1 {[%clk 0:00:38.9]} 25... Qf6 {[%clk 0:01:36.5]} 26. Bxd5 {[%clk
0:00:37.7]} 26... Rb2 {[%clk 0:01:15.4]} 27. Rxd4 {[%clk 0:00:26.2]} 27... Rxf2
{[%clk 0:01:14.9]} 28. Qxf8+ {[%clk 0:00:24.9]} 28... Qxf8 {[%clk 0:01:11.9]}
29. Rxf2 {[%clk 0:00:25.8]} 29... Qc5 {[%clk 0:01:07.4]} 30. Rd1 {[%clk
0:00:21.2]} 30... e3 {[%clk 0:01:05.6]} 31. Re2 {[%clk 0:00:21.4]} 31... Kg7
{[%clk 0:01:04.9]} 32. Bf3 {[%clk 0:00:20.5]} 32... Qf5 {[%clk 0:01:02.3]} 33.
Rf1 {[%clk 0:00:20.2]} 33... Qd3 {[%clk 0:01:01.4]} 34. Kg2 {[%clk 0:00:20.6]}
34... a5 {[%clk 0:01:00.6]} 35. Rfe1 {[%clk 0:00:21.1]} 35... a4 {[%clk
0:01:00.6]} 36. Rxe3 {[%clk 0:00:21.6]} 36... Qd2+ {[%clk 0:01:01]} 37. R1e2
{[%clk 0:00:22]} 37... Qd6 {[%clk 0:00:59.9]} 38. Re4 {[%clk 0:00:21.9]} 38...
a3 {[%clk 0:00:59.3]} 39. R4e3 {[%clk 0:00:22.3]} 39... h5 {[%clk 0:00:59.2]}
40. Rb3 {[%clk 0:00:19.3]} 40... Qc5 {[%clk 0:00:57.4]} 41. Rd3 {[%clk
0:00:16.1]} 41... Qb4 {[%clk 0:00:55.1]} 42. Rde3 {[%clk 0:00:15.4]} 42... Qc5
{[%clk 0:00:54.8]} 43. h4 {[%clk 0:00:15.1]} 43... Kh6 {[%clk 0:00:53.8]} 44.
Re6 {[%clk 0:00:14.7]} 44... Qc4 {[%clk 0:00:52.2]} 45. Kh2 {[%clk 0:00:11.8]}
45... Qb5 {[%clk 0:00:48.8]} 46. Rd2 {[%clk 0:00:07.8]} 46... Qf1 {[%clk
0:00:47.8]} 47. Bg2 {[%clk 0:00:07]} 47... Qb1 {[%clk 0:00:44.5]} 48. Be4 {[%clk
0:00:05.3]} 48... Qb4 {[%clk 0:00:39.6]} 49. Rxg6+ {[%clk 0:00:05.5]} 49... Kh7
{[%clk 0:00:39.9]} 50. Re6+ {[%clk 0:00:05]} 50... Kg7 {[%clk 0:00:39.4]} 51.
Red6 {[%clk 0:00:02.4]} 51... Qxe4 {[%clk 0:00:38]} 52. R6d3 {[%clk 0:00:02.7]}
52... Kf6 {[%clk 0:00:36.9]} 53. Rxa3 {[%clk 0:00:01.4]} 53... Qe1 {[%clk
0:00:35.8]} 54. Rad3 {[%clk 0:00:02.3]} 54... Ke5 {[%clk 0:00:34.6]} 55. Rd5+
{[%clk 0:00:02.1]} 55... Ke4 {[%clk 0:00:34.1]} 56. R5d4+ {[%clk 0:00:02.7]}
56... Ke5 {[%clk 0:00:33.8]} 57. R4d3 {[%clk 0:00:03.2]} 57... Qa1 {[%clk
0:00:31.4]} 58. a3 {[%clk 0:00:03.8]} 58... Ke4 {[%clk 0:00:30.5]} 59. Rd4+
{[%clk 0:00:04]} 59... Ke3 {[%clk 0:00:30.4]} 60. a4 {[%clk 0:00:03.9]} 60...
Qb1 {[%clk 0:00:26.6]} 61. R4d3+ {[%clk 0:00:03.8]} 61... Ke4 {[%clk 0:00:26.1]}
62. a5 {[%clk 0:00:04.1]} 62... Qa1 {[%clk 0:00:25.9]} 63. Rd5 {[%clk
0:00:03.8]} 63... Ke3 {[%clk 0:00:25.8]} 64. R2d3+ {[%clk 0:00:03.6]} 64... Ke4
{[%clk 0:00:26]} 65. Rd2 {[%clk 0:00:02.4]} 65... Ke3 {[%clk 0:00:26.3]} 66. Kg2
{[%clk 0:00:02.4]} 66... Ke4 {[%clk 0:00:22.7]} 67. R5d4+ {[%clk 0:00:02]} 67...
Ke3 {[%clk 0:00:22.7]} 68. R4d3+ {[%clk 0:00:02.5]} 68... Ke4 {[%clk 0:00:22.8]}
69. Rf3 {[%clk 0:00:02.7]} 69... Qxa5 {[%clk 0:00:20.3]} 70. Re2+ {[%clk
0:00:03.4]} 70... Kd4 {[%clk 0:00:20.5]} 71. Rf4+ {[%clk 0:00:03.8]} 71... Kd3
{[%clk 0:00:20.8]} 72. Ref2 {[%clk 0:00:04.4]} 72... Qd5+ {[%clk 0:00:19.3]} 73.
Kh2 {[%clk 0:00:05.2]} 73... Ke3 {[%clk 0:00:18.9]} 74. Rf5 {[%clk 0:00:04.4]}
74... Qd1 {[%clk 0:00:17.8]} 75. R2f4 {[%clk 0:00:02.5]} 75... Qd2+ {[%clk
0:00:14.7]} 76. Kh3 {[%clk 0:00:02.8]} 76... Qd8 {[%clk 0:00:09.2]} 77. Re5+
{[%clk 0:00:02.6]} 77... Kd3 {[%clk 0:00:09.2]} 78. Rxh5 {[%clk 0:00:02.5]}
78... Qd7+ {[%clk 0:00:09.4]} 79. Rhf5 {[%clk 0:00:02.5]} 79... Ke3 {[%clk
0:00:08.9]} 80. h5 {[%clk 0:00:03]} 80... Qh7 {[%clk 0:00:08.9]} 81. Kh4 {[%clk
0:00:03.1]} 81... Ke2 {[%clk 0:00:08.7]} 82. Rf6 {[%clk 0:00:02.9]} 82... Ke3
{[%clk 0:00:08.3]} 83. h6 {[%clk 0:00:03.1]} 83... Ke2 {[%clk 0:00:07.9]} 84. g4
{[%clk 0:00:03.5]} 84... Ke3 {[%clk 0:00:07.7]} 85. g5 {[%clk 0:00:04.1]} 85...
Qb1 {[%clk 0:00:07.4]} 86. Kh5 {[%clk 0:00:04.1]} 86... Qh1+ {[%clk 0:00:06.4]}
87. Rh4 {[%clk 0:00:03.9]} 87... Qd1+ {[%clk 0:00:05.9]} 88. Kg6 {[%clk
0:00:04.1]} 88... Qd3+ {[%clk 0:00:06.3]} 89. Kg7 {[%clk 0:00:03.9]} 89... Qd7+
{[%clk 0:00:06.2]} 90. Rf7 {[%clk 0:00:03.4]} 90... Qd5 {[%clk 0:00:06.5]} 91.
Rg4 {[%clk 0:00:01.9]} 91... Qe5+ {[%clk 0:00:06]} 92. Kg6 {[%clk 0:00:02]}
92... Qe6+ {[%clk 0:00:06.1]} 93. Rf6 {[%clk 0:00:02.4]} 93... Qg8+ {[%clk
0:00:06.2]} 94. Kh5 {[%clk 0:00:02.5]} 94... Qe8+ {[%clk 0:00:06.4]} 95. Kh4
{[%clk 0:00:01.8]} 95... Qa8 {[%clk 0:00:04.5]} 96. Rg3+ {[%clk 0:00:02.7]}
96... Ke2 {[%clk 0:00:04.1]} 97. Rg4 {[%clk 0:00:03.6]} 97... Qh1+ {[%clk
0:00:02.7]} 98. Kg3 {[%clk 0:00:04.1]} 98... Qg1+ {[%clk 0:00:02.1]} 99. Kf4
{[%clk 0:00:04.5]} 99... Qd4+ {[%clk 0:00:01.3]} 100. Kf5 {[%clk 0:00:04.6]}
100... Qd3+ {[%clk 0:00:01.1]} 101. Re4+ {[%clk 0:00:05]} 101... Kf3 {[%clk
0:00:01.1]} 102. Re6 {[%clk 0:00:05.3]} 1-0